bitfinex-derivatives/quotes_ETHF0:USTF0_20250702
["timestamp","ask_amount","ask_price","bid_price","bid_amount"]
[1751441470374,31.19706336,2442.9,2442.6,49.77749956]
[1751441470977,2.35855336,2442.7,2442.6,49.77749956]
[1751441471178,27.13155336,2442.7,2442.6,49.77749956]
[1751441471374,27.13155336,2442.7,2442.6,8.15892956]
[1751441471579,28.74555336,2442.7,2442.6,8.15892956]
[1751441471778,29.56411336,2442.7,2442.6,8.15892956]
[1751441471979,29.56411336,2442.7,2442.5,0.81863]
[1751441472182,2.35855336,2442.6,2442.5,0.81863]
[1751441472569,3.17714336,2442.6,2442.4,0.81865]
[1751441472768,1.5968,2442.5,2442.4,0.81865]
[1751441472974,24.774,2442.6,2442.5,0.81863]
[1751441473179,2.41533,2442.8,2442.6,0.81859]
[1751441473378,24.774,2442.7,2442.6,0.81859]
[1751441473982,1.5968,2442.8,2442.7,0.81856]
[1751441474280,37.8878,2442.8,2442.7,0.81856]
[1751441475381,0.81856,2442.7,2442.6,1.6812]
[1751441475575,0.8186,2442.6,2442.4,42.4812]
[1751441475779,24.775,2442.5,2442.4,43.29986]
[1751441478182,1.5968,2442.8,2442.7,0.81856]
[1751441478382,38.71033,2442.8,2442.4,44.83975336]
[1751441478575,38.71033,2442.8,2442.4,46.45015336]
[1751441478776,41.06888336,2442.8,2442.4,44.0916]
[1751441479188,0.8186,2442.6,2442.4,43.29985]
[1751441479387,24.776,2442.6,2442.5,0.81863]
[1751441479581,24.776,2442.6,2442.4,42.4812]
[1751441479983,24.776,2442.6,2442.4,43.29984]
[1751441480481,25.59459,2442.6,2442.4,43.29984]
[1751441480984,25.59461,2442.6,2442.4,43.29985]
[1751441481782,24.776,2442.6,2442.5,0.81863]
[1751441483478,25.59459,2442.6,2442.4,43.29984]
[1751441483681,0.81863,2442.5,2442.4,42.4812]
[1751441483882,25.59461,2442.6,2442.4,43.29985]
[1751441484185,24.776,2442.6,2442.4,42.4812]
[1751441484384,0.81863,2442.5,2442.4,42.4812]
[1751441484980,27.95316336,2442.6,2442.4,43.29985]
[1751441485385,0.81863,2442.5,2442.4,40.8]
[1751441485586,2.35853,2442.5,2442.2,1.5813]
[1751441485981,2.35853,2442.5,2442.3,0.81869]
[1751441487091,1.5399,2442.5,2442.4,0.81866]
[1751441487288,2.35853,2442.5,2442.3,0.81867]
[1751441487682,1.5399,2442.5,2442.4,0.81866]
[1751441488981,2.35853,2442.5,2442.4,0.81866]
[1751441489486,1.5399,2442.5,2442.4,0.81866]
[1751441489681,1.5399,2442.5,2442.1,2.49053]
[1751441489887,2.35855336,2442.4,2442.1,1.6718]
[1751441490186,25.5947,2442.3,2442.1,1.6718]
[1751441490389,25.5947,2442.3,2442.2,0.81873]
[1751441490590,25.5947,2442.3,2442.1,1.6718]
[1751441490591,4.79488336,2442.2,2442.1,0.81876]
[1751441490984,4.79488336,2442.2,2442.0,0.81878]
[1751441491283,4.79488336,2442.2,2442.1,0.81876]
[1751441491481,1.6569,2442.5,2442.0,2.047]
[1751441491790,1.6569,2442.5,2442.3,0.81869]
[1751441491791,36.292,2442.4,2442.3,0.81869]
[1751441492490,3.2745,2442.5,2442.4,0.81866]
[1751441492691,36.292,2442.5,2442.4,0.81866]
[1751441493784,36.293,2442.5,2442.4,0.81866]
[1751441493988,36.293,2442.5,2442.3,0.81867]
[1751441494187,36.293,2442.5,2442.3,2.35687]
[1751441494493,36.293,2442.5,2442.4,0.81866]
[1751441496193,36.293,2442.5,2442.3,2.35688]
[1751441496597,36.293,2442.5,2442.4,0.81866]
[1751441497590,2.35855336,2442.6,2442.5,0.81863]
[1751441497790,38.65155336,2442.6,2442.5,0.81863]
[1751441498782,2.35855336,2442.6,2442.5,0.81863]
[1751441498991,38.65055336,2442.6,2442.5,0.81863]
[1751441500198,58.928,2442.7,2442.6,0.81859]
[1751441500390,95.22,2442.7,2442.6,0.81859]
[1751441502595,70.444,2442.7,2442.6,0.81859]
[1751441502791,58.928,2442.7,2442.6,3.17714336]
[1751441502994,83.704,2442.7,2442.6,3.17714336]
[1751441503197,11.516,2442.8,2442.7,0.81856]
[1751441503495,36.292,2442.8,2442.7,0.81856]
[1751441506499,36.292,2442.8,2442.7,2.44226]
[1751441506796,11.516,2442.8,2442.7,2.44226]
[1751441507001,36.291,2442.8,2442.7,2.44226]
[1751441507202,24.774,2442.8,2442.7,2.44226]
[1751441508902,5.902,2443.5,2442.7,8.98225336]
[1751441509104,28.0686,2443.5,2443.2,0.81837]
[1751441509401,28.0686,2443.5,2443.3,0.81836]
[1751441509802,28.88689,2443.5,2443.2,0.81837]
[1751441510102,28.88689,2443.5,2443.2,40.8]
[1751441510304,2.35855336,2443.6,2443.4,0.81833]
[1751441510506,11.515,2443.7,2443.6,0.81826]
[1751441510805,36.342,2443.7,2443.6,0.81826]
[1751441512405,36.339,2443.7,2443.6,0.81826]
[1751441512604,36.339,2443.7,2443.6,2.40606]
[1751441514109,36.336,2443.7,2443.6,2.40606]
[1751441514407,11.515,2443.7,2443.6,2.40606]
[1751441514605,36.333,2443.7,2443.6,2.40606]
[1751441515102,11.515,2443.7,2443.6,2.40606]
[1751441515306,5.902,2443.8,2443.7,0.81823]
[1751441515507,24.818,2443.9,2443.8,0.81819]
[1751441515700,1.608,2444.0,2443.9,0.81816]
[1751441515905,26.429,2444.0,2443.9,0.81816]
[1751441516904,70.464,2444.1,2444.0,0.81813]
[1751441517112,96.9628,2444.1,2443.9,0.81814]
[1751441517597,96.9628,2444.1,2443.8,0.81817]
[1751441517908,2.35855336,2444.0,2443.9,0.81816]
[1751441518406,72.1458,2444.1,2444.0,0.81813]
[1751441518601,96.9638,2444.1,2444.0,0.81813]
[1751441520207,70.464,2444.1,2444.0,0.81813]
[1751441520407,95.276,2444.1,2444.0,2.39743]
[1751441520610,11.536,2444.1,2444.0,2.39743]
[1751441521007,13.1519,2444.5,2444.4,0.81799]
[1751441521507,11.534,2444.5,2444.4,0.81799]
[1751441527709,11.534,2444.5,2444.3,0.81801]
[1751441529012,2.35855336,2444.4,2444.1,1.5435]
[1751441529215,2.35855336,2444.2,2443.6,2.35855336]
[1751441529416,2.35855336,2444.2,2444.0,0.81811]
[1751441529616,1.6639,2444.1,2444.0,0.81811]
[1751441530912,2.48199,2444.1,2443.9,0.81813]
[1751441531112,4.02245336,2444.1,2443.9,0.81813]
[1751441531307,28.82845336,2444.1,2443.7,3.2323]
[1751441531507,0.81813,2444.0,2443.7,2.49381]
[1751441531713,29.64656336,2444.1,2443.8,0.81819]
[1751441532819,1.6155,2444.0,2443.8,0.81819]
[1751441533213,3.2648,2444.0,2443.8,0.81819]
[1751441533417,2.35855336,2443.9,2443.4,6.01787336]
[1751441533626,3.2648,2444.0,2443.5,3.3062]
[1751441533918,1.6493,2444.0,2443.9,0.81816]
[1751441534124,26.4699,2444.1,2444.0,0.81813]
[1751441537225,26.4699,2444.1,2443.9,0.81815]
[1751441537419,29.64658336,2444.1,2443.8,0.81818]
[1751441537619,29.64658336,2444.1,2443.8,6.15838733]
[1751441537922,28.84145336,2444.1,2443.9,0.81816]
[1751441538319,29.65954336,2444.1,2443.9,0.81816]
[1751441538526,29.65954336,2444.1,2443.8,0.81817]
[1751441538922,29.65954336,2444.1,2443.9,0.81816]
[1751441539225,29.65954336,2444.1,2443.8,0.81817]
[1751441539427,28.84145336,2444.1,2443.9,0.81816]
[1751441540721,28.84145336,2444.1,2443.6,3.97105336]
[1751441540921,28.84145336,2444.1,2443.7,1.596]
[1751441541221,28.84145336,2444.1,2443.2,48.95892956]
[1751441541527,2.35855336,2443.9,2443.6,6.05761535]
[1751441541724,2.35855336,2443.9,2443.5,0.81827]
[1751441541914,25.6372,2443.8,2443.5,0.81827]
[1751441542119,27.2372,2443.8,2443.5,0.81827]
[1751441542322,27.2372,2443.8,2443.6,0.81826]
[1751441542522,27.2372,2443.8,2443.5,0.81829]
[1751441543423,27.2372,2443.8,2443.6,0.81826]
[1751441543632,27.2372,2443.8,2443.5,0.81827]
[1751441544431,26.419,2443.8,2443.6,0.81826]
[1751441545331,26.419,2443.8,2443.4,5.22369639]
[1751441545627,1.6305,2443.7,2443.4,0.81832]
[1751441545828,0.81827,2443.6,2443.4,0.81832]
[1751441546228,4.09445,2443.7,2443.4,0.81832]
[1751441546929,0.81826,2443.6,2443.4,0.81832]
[1751441547427,0.81826,2443.6,2443.3,2.46654]
[1751441547627,0.8183,2443.5,2443.3,1.6482]
[1751441547828,0.8183,2443.5,2443.3,2.46656]
[1751441548029,2.35855336,2443.5,2443.0,8.15892956]
[1751441548227,0.81835,2443.4,2443.1,0.81841]
[1751441548626,1.6131,2443.3,2443.1,0.8184]
[1751441548828,1.6131,2443.3,2443.2,0.81839]
[1751441549030,27.18555336,2443.5,2443.3,0.81834]
[1751441549229,29.61695336,2443.5,2443.2,0.81838]
[1751441549825,29.61695336,2443.5,2443.3,0.81836]
[1751441550026,29.61695336,2443.5,2443.2,0.81837]
[1751441551926,29.61695336,2443.5,2443.3,0.81835]
[1751441552131,27.2584,2443.5,2443.3,0.81835]
[1751441552327,24.827,2443.5,2443.4,0.81833]
[1751441558134,24.827,2443.5,2443.2,8.46729741]
[1751441558333,24.827,2443.5,2443.4,0.81833]
[1751441561933,24.827,2443.5,2443.2,9.30355077]
[1751441562332,24.827,2443.5,2443.4,0.81833]
[1751441568143,3.2509,2443.7,2443.6,0.81826]
[1751441568438,24.801,2443.7,2443.6,3.17681336]
[1751441570242,24.801,2443.7,2443.6,0.81826]
[1751441575340,3.2739,2443.9,2443.5,2.35855336]
[1751441575538,24.802,2443.7,2443.6,0.81826]
[1751441575738,24.802,2443.7,2443.6,2.45786]
[1751441577543,1.66,2443.9,2443.6,2.45786]
[1751441577746,1.66,2443.9,2443.7,2.35855336]
[1751441577941,24.797,2443.8,2443.7,3.17678336]
[1751441580244,1.66,2443.9,2443.8,0.81819]
[1751441580441,13.1176,2444.0,2443.9,0.81816]
[1751441580641,37.9246,2444.0,2443.9,0.81816]
[1751441581044,37.9246,2444.0,2443.9,2.39786]
[1751441581241,37.9246,2444.0,2443.9,1.5797]
[1751441582046,38.74273,2444.0,2443.7,0.8182]
[1751441582242,1.6346,2443.9,2443.6,2.39793]
[1751441582443,2.35855336,2443.7,2443.3,8.15892956]
[1751441582643,2.35855336,2443.5,2443.3,8.15892956]
[1751441582843,0.81836,2443.3,2443.0,8.97736956]
[1751441583149,24.828,2443.2,2443.0,8.97736956]
[1751441583343,26.4626,2443.2,2443.0,8.97736956]
[1751441583544,26.4626,2443.2,2443.0,0.81844]
[1751441583745,26.4626,2443.2,2443.1,0.81843]
[1751441584048,26.4626,2443.2,2442.9,51.31748292]
[1751441584248,26.4626,2443.2,2443.1,0.81843]
[1751441584656,26.4626,2443.2,2443.0,0.81844]
[1751441585561,26.4626,2443.2,2443.1,0.81843]
[1751441585959,26.4626,2443.2,2443.0,0.81844]
[1751441586261,26.4626,2443.2,2443.1,0.81843]
[1751441587359,26.4626,2443.2,2442.9,11.33595292]
[1751441587659,26.4626,2443.2,2443.0,0.81846]
[1751441588453,27.281,2443.2,2442.9,3.17703336]
[1751441588658,28.0917,2443.2,2442.9,3.17703336]
[1751441589058,29.7307,2443.2,2442.9,3.17703336]
[1751441589456,30.5491,2443.2,2442.9,3.17703336]
[1751441590063,29.7307,2443.2,2442.9,3.17703336]
[1751441590363,29.7307,2443.2,2443.0,0.81846]
[1751441590767,29.7307,2443.2,2443.1,0.81843]
[1751441590968,28.1016,2443.2,2443.1,0.81843]
[1751441591168,28.1016,2443.2,2443.0,0.81844]
[1751441592261,28.1016,2443.2,2443.1,0.81843]
[1751441592462,28.1016,2443.2,2443.1,3.17698336]
[1751441592662,24.828,2443.2,2443.1,3.17698336]
[1751441594470,1.531,2443.5,2443.1,2.35855336]
[1751441594671,24.809,2443.4,2443.3,2.35855336]
[1751441595473,24.809,2443.4,2443.3,3.17688336]
[1751441597870,24.809,2443.4,2443.2,2.41877]
[1751441598072,24.809,2443.4,2443.3,0.81836]
[1751441599667,24.809,2443.4,2443.2,2.41878]
[1751441600771,24.809,2443.4,2443.3,0.81836]
[1751441601067,24.809,2443.4,2443.2,2.41877]
[1751441601270,24.809,2443.4,2443.3,0.81836]
[1751441601774,24.809,2443.4,2443.2,2.41877]
[1751441601970,24.809,2443.4,2443.2,1.6004]
[1751441602175,25.62734,2443.4,2442.9,2.35855336]
[1751441602376,2.29686,2443.3,2443.1,0.8184]
[1751441602577,1.4785,2443.3,2443.2,0.81839]
[1751441604280,1.4785,2443.3,2443.1,0.8184]
[1751441604469,24.802,2443.2,2443.1,0.8184]
[1751441607784,24.802,2443.2,2443.0,0.81844]
[1751441608079,27.97895336,2443.2,2442.9,2.31836]
[1751441608274,29.55925336,2443.2,2442.9,2.31836]
[1751441608587,24.802,2443.2,2443.0,0.81846]
[1751441609078,24.802,2443.2,2443.1,0.81843]
[1751441611680,1.531,2443.5,2443.1,4.40459336]
[1751441611880,24.792,2443.4,2443.2,3.142]
[1751441612080,24.792,2443.4,2443.3,1.5084]
[1751441612586,24.792,2443.4,2443.3,2.32676]
[1751441612883,11.525,2443.6,2443.3,1.5084]
[1751441613083,24.802,2443.5,2443.4,0.81833]
[1751441613481,24.799,2443.5,2443.3,1.5084]
[1751441613783,24.799,2443.5,2443.4,0.81833]
[1751441616684,11.525,2443.7,2443.6,0.81826]
[1751441616886,13.0318,2443.8,2443.7,0.81823]
[1751441617083,37.8268,2443.8,2443.7,0.81823]
[1751441617283,13.0318,2443.8,2443.7,0.81823]
[1751441617484,37.8268,2443.8,2443.7,0.81823]
[1751441617684,11.525,2443.8,2443.7,0.81823]
[1751441617887,60.4206,2443.9,2443.8,0.81819]
[1751441618084,96.7396,2443.9,2443.8,0.81819]
[1751441618587,96.7406,2443.9,2443.8,0.81819]
[1751441618788,95.22,2443.9,2443.8,0.81819]
[1751441620789,36.32,2443.9,2443.8,0.81819]
[1751441623495,36.32,2443.9,2443.5,1.5712]
[1751441623695,2.35855336,2443.7,2443.6,0.81823]
[1751441623888,27.14755336,2443.7,2443.6,0.81823]
[1751441624594,24.789,2443.7,2443.6,0.81823]
[1751441631300,27.14755336,2443.7,2443.5,0.81827]
[1751441631490,1.518,2443.6,2443.3,3.1215]
[1751441631697,27.15655336,2443.5,2443.3,2.30194]
[1751441631898,28.74215336,2443.5,2443.3,2.30194]
[1751441632200,28.74215336,2443.5,2443.3,0.81834]
[1751441632499,28.74215336,2443.5,2443.3,0.81833]
[1751441633803,28.74215336,2443.5,2443.4,0.81833]
[1751441634102,26.3836,2443.5,2443.4,0.81833]
[1751441635805,26.3836,2443.5,2443.3,0.81834]
[1751441636202,27.2019,2443.5,2443.3,0.81834]
[1751441636403,27.9209,2443.5,2443.3,0.81834]
[1751441636902,27.9209,2443.5,2443.4,0.81833]
[1751441639709,26.3836,2443.5,2443.4,0.81833]
[1751441640210,1.518,2443.6,2443.5,0.81829]
[1751441640515,26.316,2443.6,2443.5,0.81829]
[1751441644716,27.13427,2443.6,2443.3,1.5503]
[1751441644916,27.13427,2443.6,2443.3,0.81833]
[1751441645115,26.316,2443.6,2443.4,0.81832]
[1751441645317,24.798,2443.6,2443.4,0.81832]
[1751441645615,26.3817,2443.6,2443.4,0.81832]
[1751441645816,26.3817,2443.6,2443.5,0.81829]
[1751441646116,26.3817,2443.6,2443.4,0.8183]
[1751441646317,26.3817,2443.6,2443.5,0.81829]
[1751441647212,26.3817,2443.6,2443.2,3.0616]
[1751441647516,27.19997,2443.6,2443.2,3.0616]
[1751441647718,27.19997,2443.6,2443.4,0.81831]
[1751441648317,26.3817,2443.6,2443.4,0.81831]
[1751441648514,27.19999,2443.6,2443.3,0.81834]
[1751441648719,27.19999,2443.6,2443.4,0.81832]
[1751441648919,24.798,2443.6,2443.5,0.81829]
[1751441649121,26.3902,2443.6,2443.5,0.81829]
[1751441650122,27.20847,2443.6,2443.4,0.81831]
[1751441650321,26.3902,2443.6,2443.4,0.81831]
[1751441651022,26.3902,2443.6,2443.5,0.81829]
[1751441655229,26.3902,2443.6,2443.4,0.81831]
[1751441656428,27.20846,2443.6,2443.4,0.81831]
[1751441656630,27.20846,2443.6,2443.5,0.81829]
[1751441656823,26.3902,2443.6,2443.5,0.81829]
[1751441658427,27.20846,2443.6,2443.4,0.8183]
[1751441658632,26.3902,2443.6,2443.5,0.81829]
[1751441658823,24.798,2443.6,2443.5,0.81829]
[1751441660132,24.798,2443.6,2443.2,3.0616]
[1751441660325,2.35855336,2443.5,2443.3,0.81835]
[1751441660526,24.781,2443.4,2443.3,0.81835]
[1751441662134,24.781,2443.4,2443.3,0.81836]
[1751441662436,24.781,2443.4,2443.2,2.33027]
[1751441662636,24.781,2443.4,2443.3,0.81836]
[1751441665637,25.59933,2443.4,2443.2,2.33027]
[1751441665834,24.781,2443.4,2443.3,0.81836]
[1751441667937,24.781,2443.4,2443.3,2.33316]
[1751441670139,24.781,2443.4,2443.3,4.69171336]
[1751441670442,24.781,2443.4,2443.3,3.79086]
[1751441675248,24.781,2443.4,2443.3,2.33316]
[1751441683850,24.781,2443.4,2443.3,0.81836]
[1751441685950,24.781,2443.4,2443.3,2.31826]
[1751441687853,1.5098,2443.7,2443.6,0.81826]
[1751441688053,37.8078,2443.7,2443.6,0.81826]
[1751441688554,13.0268,2443.7,2443.6,0.81826]
[1751441688747,37.8078,2443.7,2443.6,0.81826]
[1751441688949,37.8078,2443.7,2443.5,0.81826]
[1751441689253,37.8078,2443.7,2443.6,0.81826]
[1751441689755,37.8078,2443.7,2443.5,2.38697]
[1751441690254,37.8078,2443.7,2443.6,0.81826]
[1751441691549,1.5098,2443.7,2443.6,0.81826]
[1751441691854,37.8068,2443.7,2443.6,0.81826]
[1751441694457,0.81818,2443.9,2443.7,0.81821]
[1751441694754,37.94576664,2443.8,2443.7,0.81821]
[1751441695748,36.296,2443.8,2443.7,0.81821]
[1751441695950,71.945,2444.1,2444.0,0.81812]
[1751441696157,70.421,2444.1,2444.0,2.46788664]
[1751441696357,95.2,2444.1,2444.0,2.46788664]
[1751441696656,70.421,2444.1,2444.0,2.46788664]
[1751441697162,11.517,2444.1,2444.0,2.46788664]
[1751441697356,11.516,2444.5,2444.4,0.81796]
[1751441697660,36.296,2444.5,2444.4,0.81796]
[1751441698061,11.516,2444.5,2444.4,0.81796]
[1751441698248,36.297,2444.5,2444.4,0.81796]
[1751441700261,36.294,2444.5,2444.4,0.81796]
[1751441700859,11.516,2444.5,2444.4,3.17300058]
[1751441701062,36.292,2444.5,2444.4,3.17300058]
[1751441701255,36.292,2444.5,2444.4,0.81796]
[1751441705152,36.292,2444.5,2444.4,0.81799]
[1751441705354,38.64704058,2444.5,2444.4,0.81799]
[1751441705762,40.16264058,2444.5,2444.4,0.81799]
[1751441706264,37.8076,2444.5,2444.4,0.81799]
[1751441710270,36.292,2444.5,2444.4,0.81799]
[1751441711170,36.292,2444.5,2444.4,2.33729]
[1751441713969,36.292,2444.5,2444.4,3.93889]
[1751441716364,11.516,2444.5,2444.4,3.93889]
[1751441716572,13.0559,2445.0,2444.9,0.81782]
[1751441716767,37.8269,2445.0,2444.9,0.81782]
[1751441717571,11.512,2445.0,2444.9,0.81782]
[1751441717773,36.283,2445.0,2444.9,0.81782]
[1751441720782,11.512,2445.0,2444.9,0.81782]
[1751441720974,36.282,2445.0,2444.9,0.81782]
[1751441721176,11.512,2445.0,2444.9,0.81782]
[1751441721479,36.28,2445.0,2444.9,0.81782]
[1751441729679,36.28,2445.0,2444.9,3.17286058]
[1751441743996,1.5903,2445.1,2445.0,0.81779]
[1751441744186,26.3543,2445.1,2445.0,0.81779]
[1751441745197,26.3543,2445.1,2445.0,2.27339]
[1751441748601,1.4669,2445.2,2445.1,0.81776]
[1751441748800,26.2299,2445.2,2445.1,2.46560207]
[1751441751201,13.1056,2445.4,2445.3,0.81769]
[1751441751394,37.8686,2445.4,2445.3,1.64784207]
[1751441752103,36.273,2445.4,2445.3,1.64784207]
[1751441752297,37.7552,2445.4,2445.3,1.64784207]
[1751441753005,37.7552,2445.4,2445.2,2.46554207]
[1751441754603,37.7552,2445.4,2445.3,0.81769]
[1751441754803,37.7552,2445.4,2445.2,2.46554207]
[1751441758005,37.7552,2445.4,2445.3,0.81769]
[1751441759700,37.7552,2445.4,2445.2,2.46554207]
[1751441760207,37.7552,2445.4,2445.3,0.81769]
[1751441760500,12.9922,2445.4,2445.3,0.81769]
[1751441760905,37.7522,2445.4,2445.3,2.32089]
[1751441761303,37.7522,2445.4,2445.0,1.5641]
[1751441761604,39.226,2445.4,2445.1,2.46557207]
[1751441761805,39.226,2445.4,2445.2,0.81772]
[1751441762402,37.7522,2445.4,2445.1,1.64784207]
[1751441762600,37.7522,2445.4,2445.3,0.81769]
[1751441763303,37.7522,2445.4,2445.2,2.3209]
[1751441764007,37.7522,2445.4,2445.3,0.81769]
[1751441764208,37.7522,2445.4,2445.2,2.3209]
[1751441765309,36.27,2445.4,2445.2,1.5032]
[1751441765706,36.27,2445.4,2445.2,2.32091]
[1751441766603,36.27,2445.4,2445.3,0.81769]
[1751441767311,36.27,2445.4,2445.2,2.3209]
[1751441767512,36.27,2445.4,2445.3,0.81769]
[1751441769199,61.20413,2445.5,2445.3,0.81769]
[1751441769403,24.757,2445.4,2445.3,0.81769]
[1751441770508,24.757,2445.4,2445.3,2.46553207]
[1751441770807,24.757,2445.4,2445.3,1.64784207]
[1751441771008,25.57466,2445.4,2445.2,3.15104207]
[1751441771313,25.57466,2445.4,2444.7,8.17046748]
[1751441771314,31.40484207,2445.4,2444.7,8.17046748]
[1751441771511,0.81773,2445.2,2444.9,0.8178]
[1751441771813,29.39124207,2445.1,2445.0,0.81779]
[1751441772202,27.7434,2445.1,2445.0,0.81779]
[1751441773713,26.2765,2445.1,2445.0,0.81779]
[1751441774611,26.2765,2445.1,2445.0,2.35429]
[1751441775614,26.2765,2445.1,2445.0,1.5365]
[1751441775917,26.2765,2445.1,2444.9,2.46566207]
[1751441776214,26.2765,2445.1,2445.0,0.81779]
[1751441778817,11.507,2445.3,2445.2,0.81771]
[1751441779117,24.756,2445.3,2445.2,2.46555207]
[1751441781520,7.4594,2445.4,2445.3,0.81769]
[1751441781915,32.2144,2445.4,2445.3,0.81769]
[1751441782120,26.3124,2445.4,2445.3,0.81769]
[1751441783221,58.887,2445.5,2445.4,0.81766]
[1751441783431,83.642,2445.5,2445.4,2.46550207]
[1751441783720,5.902,2445.7,2445.4,1.64784207]
[1751441784021,5.902,2445.7,2445.6,2.46543207]
[1751441784214,30.657,2445.7,2445.6,2.46543207]
[1751441785723,30.657,2445.7,2445.6,1.64784207]
[1751441785921,30.657,2445.7,2445.5,0.81761]
[1751441786521,30.657,2445.7,2445.6,0.81759]
[1751441787218,5.902,2445.7,2445.6,0.81759]
[1751441787421,30.655,2445.7,2445.6,0.81759]
[1751441788022,24.753,2445.7,2445.6,0.81759]
[1751441788622,1.5661,2445.9,2445.6,2.35263547]
[1751441788825,0.81754,2445.8,2445.5,2.35263547]
[1751441789124,24.753,2445.7,2445.5,4.69862547]
[1751441789722,25.57056,2445.7,2445.5,4.69862547]
[1751441789921,25.57056,2445.7,2445.5,3.88103547]
[1751441790222,0.81762,2445.5,2445.4,42.3132]
[1751441790424,0.81762,2445.5,2445.4,1.5132]
[1751441790425,25.56962,2445.5,2445.4,1.5132]
[1751441796925,24.752,2445.5,2445.4,1.5132]
[1751441797829,24.752,2445.5,2445.4,2.9877]
[1751441798228,25.56962,2445.5,2445.4,2.9877]
[1751441799018,25.56762,2445.5,2445.4,2.9877]
[1751441799524,24.75,2445.5,2445.4,2.9877]
[1751441799728,0.81761,2445.6,2445.4,2.9877]
[1751441799930,25.56662,2445.5,2445.4,2.9877]
[1751441800726,24.749,2445.5,2445.4,2.9877]
[1751441801528,0.8176,2445.6,2445.4,2.9877]
[1751441801722,25.56662,2445.5,2445.4,2.9877]
[1751441801923,24.749,2445.5,2445.4,2.9877]
[1751441802828,24.749,2445.5,2445.4,3.80536]
[1751441803531,24.749,2445.5,2445.4,2.9877]
[1751441803926,24.749,2445.5,2445.4,3.80536]
[1751441804432,24.749,2445.5,2445.4,2.9877]
[1751441804825,24.749,2445.5,2445.4,3.80536]
[1751441805935,24.748,2445.6,2445.5,0.8176]
[1751441806135,24.748,2445.6,2445.5,4.72773547]
[1751441806334,24.747,2445.7,2445.6,0.81758]
[1751441806831,24.747,2445.7,2445.6,2.37508]
[1751441807228,1.5029,2445.9,2445.7,0.81755]
[1751441807529,65.58938,2446.3,2445.7,3.92543547]
[1751441807734,13.7413,2446.2,2445.9,0.81747]
[1751441807934,13.7413,2446.2,2446.0,0.81745]
[1751441807935,11.503,2446.2,2446.0,0.81745]
[1751441808132,11.503,2446.2,2446.0,1.5728]
[1751441808436,36.249,2446.2,2446.0,2.39024]
[1751441808940,11.503,2446.2,2446.1,0.81742]
[1751441809234,12.32027,2446.6,2446.0,3.92543547]
[1751441809433,24.746,2446.5,2446.4,2.35263547]
[1751441809625,24.746,2446.5,2446.2,3.17000547]
[1751441809827,24.746,2446.5,2446.3,0.81735]
[1751441810028,24.746,2446.4,2446.3,2.37263]
[1751441810236,2.45114024,2447.4,2446.3,3.0099]
[1751441810430,2.77562035,2447.3,2446.7,0.81719]
[1751441810637,2.35263547,2447.1,2446.5,2.35263547]
[1751441810835,2.35263547,2446.7,2446.5,1.5553]
[1751441811128,2.35263547,2446.7,2445.8,9.51560201]
[1751441811129,0.81734,2446.4,2445.8,9.51560201]
[1751441811440,1.5428,2446.3,2446.1,0.81741]
[1751441811738,24.77,2446.2,2446.1,0.81741]
[1751441812446,24.77,2446.2,2446.1,3.17004547]
[1751441813031,1.4662,2446.6,2446.1,2.35263547]
[1751441813238,24.776,2446.7,2446.5,2.35263547]
[1751441813444,24.779,2447.0,2446.6,1.4168]
[1751441813737,24.779,2447.0,2446.8,0.81718]
[1751441813928,24.779,2447.0,2446.9,2.35263547]
[1751441814132,1.5255,2447.1,2447.0,0.81712]
[1751441814436,24.784,2447.1,2446.9,3.16976547]
[1751441814632,58.855,2447.2,2447.1,0.81709]
[1751441814840,24.786,2447.4,2447.1,2.35263547]
[1751441815041,24.786,2447.4,2447.3,2.35263547]
[1751441816337,13.0265,2447.5,2447.3,2.35263547]
[1751441816634,1.5255,2447.5,2447.3,2.35263547]
[1751441816839,0.81679,2448.0,2447.5,0.81695]
[1751441817039,24.812,2448.1,2447.6,2.35263547]
[1751441817338,2.35263547,2447.7,2447.6,40.8]
[1751441817634,24.815,2447.7,2447.6,40.8]
[1751441817832,26.2829,2447.7,2447.4,0.81698]
[1751441818235,26.2829,2447.7,2447.3,2.35263547]
[1751441818436,26.2829,2447.7,2447.4,41.61698]
[1751441819132,27.09979,2447.7,2447.4,40.8]
[1751441819340,26.2829,2447.7,2447.4,41.61699]
[1751441819540,27.0998,2447.7,2447.4,40.8]
[1751441819743,27.0998,2447.7,2447.4,41.61699]
[1751441820433,26.2829,2447.7,2447.5,0.81695]
[1751441820641,0.81683,2447.9,2447.6,0.81692]
[1751441820835,1.5196,2448.1,2447.7,2.35263547]
[1751441821230,1.5196,2448.1,2448.0,0.81679]
[1751441821437,26.3456,2448.1,2448.0,0.81679]
[1751441821936,25.6447,2448.3,2448.0,0.81677]
[1751441822136,0.81672,2448.2,2447.9,3.16944547]
[1751441822340,27.17963547,2448.2,2447.5,2.35263547]
[1751441822641,2.35263547,2448.0,2447.5,1.5269]
[1751441823036,0.81694,2447.6,2447.4,41.61698]
[1751441823344,0.81694,2447.6,2447.4,41.61699]
[1751441823738,1.5478,2447.7,2447.4,40.8]
[1751441823937,1.5382,2447.5,2447.4,0.81699]
[1751441824337,1.5382,2447.5,2447.1,0.81706]
[1751441824641,0.81699,2447.4,2447.1,40.8]